bitfinex/quotes_BTCUSD_20260315
["timestamp","ask_amount","ask_price","bid_price","bid_amount"]
[1773606498619,0.06998362,71446.0,71431.0,0.01778773]
[1773606499330,0.0014,71445.0,71431.0,0.01778773]
[1773606499661,0.0702023,71447.0,71433.0,0.01778773]
[1773606499847,0.00313125,71448.0,71433.0,0.01778773]
[1773606500045,0.06997625,71453.0,71438.0,0.01778773]
[1773606500195,0.0014,71450.0,71438.0,0.01778773]
[1773606500401,0.0014,71450.0,71432.0,0.06999664]
[1773606500603,0.0014,71450.0,71433.0,0.01778773]
[1773606500802,0.0001345,71451.0,71433.0,0.01778773]
[1773606501002,0.0014,71450.0,71433.0,0.01778773]
[1773606501206,0.00022001,71444.0,71433.0,0.01778773]
[1773606501668,0.00022001,71444.0,71435.0,0.01778773]
[1773606503736,0.00162001,71444.0,71437.0,0.01910228]
[1773606505709,0.00162001,71444.0,71438.0,0.06999076]
[1773606507063,0.00162001,71444.0,71431.0,0.06999762]
[1773606507064,0.01871159,71443.0,71431.0,0.06999762]
[1773606507874,0.01871159,71441.0,71427.0,0.07000154]
[1773606509865,0.01871159,71440.0,71427.0,0.18163762]
[1773606511187,0.0014,71439.0,71428.0,0.11163608]
[1773606511387,0.0014,71439.0,71428.0,0.13073836]
[1773606512077,0.0014,71439.0,71429.0,0.06999958]
[1773606515792,0.0014,71438.0,71430.0,0.01910228]
[1773606515997,0.00022001,71444.0,71430.0,0.01910228]
[1773606515998,0.0014,71437.0,71430.0,0.01910228]
[1773606516235,0.0014,71437.0,71431.0,0.06999762]
[1773606516439,0.0014,71437.0,71431.0,0.0890999]
[1773606517225,0.0014,71437.0,71431.0,0.06999762]
[1773606517425,0.0702049,71444.0,71432.0,0.01910228]
[1773606517771,0.0014,71443.0,71432.0,0.01910228]
[1773606518355,0.07138604,71443.0,71433.0,0.06999566]
[1773606521705,0.0014,71442.0,71433.0,0.06999566]
[1773606528233,0.0014,71442.0,71433.0,0.18163174]
[1773606530861,0.0014,71441.0,71433.0,0.18163174]
[1773606531273,0.0014,71440.0,71434.0,0.11163608]
[1773606534302,0.0014,71440.0,71435.0,0.0699937]
[1773606535275,0.0014,71440.0,71435.0,0.18162978]
[1773606535470,0.0014,71440.0,71435.0,0.0699937]
[1773606536930,0.0014,71439.0,71435.0,0.0699937]
[1773606540608,0.0014,71442.0,71437.0,0.11163608]
[1773606540806,0.0014,71445.0,71438.0,0.12937025]
[1773606541194,0.0014,71445.0,71438.0,0.01773417]
[1773606541528,0.00022001,71449.0,71438.0,0.01773417]
[1773606541529,0.0014,71444.0,71438.0,0.12937025]
[1773606541688,0.00022001,71449.0,71438.0,0.12937025]
[1773606541937,0.0014,71443.0,71438.0,0.12937025]
[1773606542294,0.00022001,71449.0,71438.0,0.11163608]
[1773606542495,1e-08,71449.0,71441.0,0.08772199]
[1773606542696,0.0014,71448.0,71441.0,0.08772199]
[1773606542931,1e-08,71449.0,71441.0,0.08772199]
[1773606543139,0.0014,71447.0,71441.0,0.19935807]
[1773606543341,0.0014,71447.0,71442.0,0.11163608]
[1773606544510,0.0014,71447.0,71443.0,0.06998586]
[1773606548253,0.0014,71447.0,71442.0,0.06998586]
[1773606553210,0.00162001,71447.0,71442.0,0.06998586]
[1773606555570,0.00022001,71466.0,71442.0,0.01773417]
[1773606555787,0.08801258,71463.0,71450.0,0.05876342]
[1773606555953,0.06996827,71461.0,71449.0,0.11171524]
[1773606556109,0.08801449,71461.0,71449.0,0.11171524]
[1773606556316,0.01804622,71461.0,71448.0,0.11171524]
[1773606557118,0.01804622,71461.0,71448.0,0.11193934]
[1773606557246,0.01804622,71461.0,71448.0,0.0002241]
[1773606558409,0.01804622,71461.0,71449.0,0.06997998]
[1773606558958,0.01804622,71461.0,71449.0,0.07020408]
[1773606559162,0.0014,71459.0,71449.0,0.07020408]
[1773606562958,0.0014,71459.0,71449.0,0.14579208]
[1773606563361,0.00022001,71462.0,71450.0,0.01682458]
[1773606563504,0.0014,71458.0,71450.0,0.01682458]
[1773606564135,0.0014,71458.0,71450.0,0.01704868]
[1773606565633,0.0014,71458.0,71451.0,0.06997802]
[1773606566011,0.0014,71458.0,71451.0,0.07020212]
[1773606574503,0.07018719,71464.0,71451.0,0.07020212]
[1773606574708,0.0002773,71490.0,71457.0,0.17047866]
[1773606574709,0.01669028,71474.0,71457.0,0.17047866]
[1773606574912,0.0014,71473.0,71459.0,0.11171524]
[1773606575108,0.0014,71472.0,71459.0,0.06997019]
[1773606575463,0.0014,71471.0,71459.0,0.06997019]
[1773606575665,0.00022001,71475.0,71461.0,0.02309251]
[1773606575850,0.0014,71474.0,71462.0,0.00769062]
[1773606576051,0.0014,71474.0,71461.0,0.02309251]
[1773606576227,0.00022001,71475.0,71461.0,0.02309251]
[1773606576426,0.0014,71474.0,71461.0,0.02309251]
[1773606577138,0.00022001,71475.0,71462.0,0.06996725]
[1773606577562,0.00162001,71475.0,71462.0,0.06996725]
[1773606577940,0.00022001,71475.0,71462.0,0.06996725]
[1773606578273,0.0014,71474.0,71462.0,0.06996725]
[1773606579364,0.0014,71473.0,71462.0,0.06996725]
[1773606582711,0.0014,71472.0,71462.0,0.06996725]
[1773606585404,0.0014,71471.0,71462.0,0.06996725]
[1773606585630,0.0014,71470.0,71462.0,0.06996725]
[1773606585843,0.0014,71471.0,71462.0,0.06996725]
[1773606588498,0.01600679,71476.0,71462.0,0.06996725]
[1773606588679,0.06994963,71480.0,71462.0,0.06996725]
[1773606588680,0.0014,71475.0,71462.0,0.06996725]
[1773606588881,0.01740679,71475.0,71462.0,0.06996725]
[1773606589970,0.0162268,71472.0,71462.0,0.06996725]
[1773606592318,0.0162268,71472.0,71460.0,0.19175634]
[1773606592461,0.0162268,71472.0,71462.0,0.06996725]
[1773606595141,0.07016946,71481.0,71462.0,0.06996725]
[1773606595142,0.00022001,71481.0,71464.0,0.0236]
[1773606595298,0.00022001,71481.0,71470.0,0.05876342]
[1773606595694,0.0014,71480.0,71470.0,0.05876342]
[1773606596163,0.0014,71479.0,71470.0,0.05876342]
[1773606596285,0.00175683,71479.0,71470.0,0.05876342]
[1773606596491,0.00022001,71481.0,71470.0,0.05876342]
[1773606596693,0.00032702,71481.0,71470.0,0.05876342]
[1773606597240,0.00032702,71481.0,71471.0,0.06995844]
[1773606597823,0.00172702,71481.0,71471.0,0.06995844]
[1773606599115,0.0014,71480.0,71471.0,0.06995844]
[1773606600558,0.00032702,71481.0,71471.0,0.06995844]
[1773606600719,0.0014,71479.0,71471.0,0.06995844]
[1773606601046,0.00032702,71481.0,71471.0,0.06995844]
[1773606601243,0.0014,71480.0,71471.0,0.06995844]
[1773606601506,0.00022001,71487.0,71471.0,0.06995844]
[1773606601507,0.0001778,71495.0,71476.0,0.00398068]
[1773606601729,0.0014,71494.0,71481.0,0.1116663]
[1773606602199,0.0014,71493.0,71480.0,0.17035838]
[1773606602444,0.0001778,71495.0,71482.0,0.1116663]
[1773606602607,0.01379875,71510.0,71487.0,0.0173126]
[1773606602749,0.0001897,71518.0,71481.0,0.23735385]
[1773606602750,0.0001702,71521.0,71503.0,0.05869208]
[1773606602953,8.053e-05,71518.0,71510.0,0.05869208]
[1773606603360,0.00148053,71518.0,71510.0,0.05869208]
[1773606603785,0.0014,71517.0,71501.0,0.11145773]
[1773606603986,0.0014,71517.0,71501.0,0.00010697]
[1773606604390,0.0014,71517.0,71501.0,0.08734866]
[1773606605288,0.0014,71517.0,71503.0,0.00022001]
[1773606605463,8.053e-05,71516.0,71507.0,0.05869208]
[1773606606088,0.0001702,71521.0,71507.0,0.05869208]
[1773606606286,0.0001702,71521.0,71509.0,0.0173126]
[1773606606512,0.01907395,71520.0,71508.0,0.06992224]
[1773606607223,0.01907395,71520.0,71510.0,0.05869208]
[1773606607381,0.01907395,71520.0,71508.0,0.06992224]
[1773606607382,0.01767395,71520.0,71508.0,0.06992224]
[1773606607581,0.0014,71519.0,71508.0,0.06992224]
[1773606607783,5e-05,71528.0,71509.0,0.05869208]
[1773606607983,5e-05,71528.0,71508.0,0.06992224]
[1773606607984,0.0014,71527.0,71518.0,0.05869208]
[1773606608193,0.0014,71526.0,71518.0,0.07600468]
[1773606608436,0.0014,71526.0,71519.0,0.08722409]
[1773606609153,0.0014,71525.0,71519.0,0.08722409]
[1773606609361,5e-05,71541.0,71520.0,0.0173126]
[1773606609492,5e-05,71541.0,71530.0,0.05869208]
[1773606609697,0.0014,71540.0,71530.0,0.05869208]
[1773606610324,5e-05,71541.0,71531.0,0.06989976]
[1773606610544,0.0014,71539.0,71531.0,0.06989976]
[1773606611521,0.0014,71538.0,71531.0,0.06989976]
[1773606612525,0.00015697,71541.0,71532.0,0.0173126]
[1773606612727,0.00022001,71540.0,71531.0,0.06989976]
[1773606613337,0.01767395,71539.0,71530.0,0.06989976]
[1773606613755,0.01767395,71539.0,71531.0,0.06989976]
[1773606614787,0.01767395,71538.0,71521.0,0.06990953]
[1773606616656,0.0698939,71537.0,71521.0,0.06990953]
[1773606616857,0.01767395,71536.0,71521.0,0.06990953]
[1773606618956,0.01767395,71534.0,71511.0,0.06991931]
[1773606619210,0.01767395,71532.0,71511.0,0.06991931]
[1773606620859,0.06989916,71532.0,71511.0,0.08723191]
[1773606621116,0.01767395,71531.0,71511.0,0.08723191]
[1773606621493,0.08757371,71531.0,71512.0,0.0173126]
[1773606621688,0.01767395,71531.0,71512.0,0.0173126]
[1773606622525,0.00022001,71536.0,71511.0,0.06991931]
[1773606622526,0.00025,71549.0,71520.0,0.5869208]
[1773606622712,0.0014,71540.0,71530.0,0.05869208]
[1773606622899,0.07013271,71549.0,71530.0,0.05869208]
[1773606622900,0.0014,71544.0,71530.0,0.05869208]
[1773606623249,0.01878944,71548.0,71531.0,0.06989976]
[1773606623406,0.0014,71544.0,71531.0,0.06989976]
[1773606623592,0.0014,71544.0,71531.0,0.08820376]
[1773606624171,0.06988416,71547.0,71531.0,0.08820376]
[1773606624326,0.0014,71543.0,71531.0,0.08820376]
[1773606624830,0.06988416,71547.0,71531.0,0.08820376]
[1773606625140,0.0014,71542.0,71531.0,0.06989976]
[1773606625359,0.0014,71542.0,71532.0,0.018304]
[1773606625758,0.0014,71543.0,71532.0,0.018304]
[1773606627169,0.07010334,71548.0,71532.0,0.018304]
[1773606627315,0.00022001,71551.0,71532.0,0.018304]
[1773606627316,0.0699146,71568.0,71550.0,0.05869208]
[1773606627534,0.08848403,71568.0,71550.0,0.05869208]
[1773606627863,0.01996943,71567.0,71546.0,0.018304]
[1773606628062,0.0014,71567.0,71546.0,0.018304]
[1773606628265,0.01856943,71566.0,71546.0,0.018304]
[1773606628411,0.01892584,71566.0,71546.0,0.018304]
[1773606628779,0.00035641,71566.0,71551.0,0.018304]
[1773606628979,0.09444749,71581.0,71551.0,0.018304]
[1773606628980,0.007,71580.0,71551.0,0.018304]
[1773606629147,0.00015688,71572.0,71560.0,0.05869208]
[1773606629465,0.00015688,71572.0,71562.0,0.018304]
[1773606629825,0.00015688,71572.0,71561.0,0.06987046]
[1773606630029,0.00015688,71572.0,71562.0,0.01947129]
[1773606630628,0.00015688,71572.0,71561.0,0.06987046]
[1773606631060,0.0014,71571.0,71561.0,0.06987046]
[1773606631272,0.0014,71575.0,71562.0,0.01947129]
[1773606631475,0.0014,71575.0,71562.0,0.01957817]
[1773606632282,0.07020352,71578.0,71562.0,0.01957817]
[1773606632464,0.0014,71574.0,71562.0,0.01957817]
[1773606632981,5e-05,71586.0,71562.0,0.01957817]
[1773606633174,0.02099623,71611.0,71581.0,0.018304]
[1773606633175,5e-05,71610.0,71581.0,0.018304]
[1773606633437,0.08246105,71612.0,71583.0,0.018304]
[1773606633642,0.01124,71612.0,71591.0,0.018304]
[1773606633816,0.0824611,71612.0,71593.0,0.018304]
[1773606634023,0.0824611,71612.0,71594.0,0.0014]
[1773606634220,0.01176398,71611.0,71590.0,0.0014]
[1773606634391,0.01359581,71611.0,71588.0,0.0014]
[1773606634597,0.0014,71610.0,71589.0,0.018304]
[1773606634839,0.00150688,71610.0,71590.0,0.018304]
[1773606635140,0.0014,71609.0,71590.0,0.018304]
[1773606635321,0.0014,71609.0,71592.0,0.0195497]
[1773606635322,0.0712246,71608.0,71592.0,0.0195497]
[1773606636042,0.0712246,71608.0,71590.0,0.06994806]
[1773606636043,0.0712246,71608.0,71590.0,0.06994869]
[1773606636411,0.0712246,71608.0,71590.0,0.09376247]
[1773606636607,0.0712246,71608.0,71590.0,0.00010688]
[1773606636819,0.0712246,71608.0,71590.0,0.06994877]
[1773606637022,0.0712246,71608.0,71590.0,0.00010688]
[1773606637255,0.0712246,71608.0,71590.0,0.06994869]
[1773606637424,0.00413067,71607.0,71590.0,0.00010688]
[1773606637841,0.00413067,71607.0,71585.0,5e-05]
[1773606638042,0.00423745,71607.0,71585.0,5e-05]
[1773606638262,0.0014,71606.0,71585.0,0.06989668]
[1773606638416,0.00402379,71605.0,71585.0,5e-05]
[1773606638620,0.00402379,71605.0,71584.0,5e-05]
[1773606639070,0.00010678,71607.0,71585.0,0.06984703]
[1773606639266,0.33508114,71636.0,71591.0,0.01956848]
[1773606639267,0.00395249,71630.0,71591.0,0.01956848]
[1773606639424,0.06980997,71623.0,71594.0,1.206692]
[1773606639821,0.06980997,71623.0,71593.0,0.06983923]
[1773606639822,0.0014,71623.0,71597.0,0.02158038]
[1773606640190,0.0014,71623.0,71598.0,0.2183]
[1773606640352,0.0014,71623.0,71598.0,1.189013]
[1773606640550,0.0014,71623.0,71601.0,0.02158038]
[1773606640752,0.0014,71623.0,71603.0,0.02158038]
[1773606641564,0.06981095,71622.0,71604.0,0.0698285]
[1773606641783,0.06981095,71622.0,71605.0,0.02136022]
[1773606641983,0.07121095,71623.0,71605.0,0.02136022]
[1773606643464,0.07143096,71623.0,71605.0,0.02136022]
[1773606643674,0.07143096,71623.0,71607.0,0.02143908]
[1773606643893,0.07003096,71623.0,71607.0,0.02143908]
[1773606644233,0.0014,71622.0,71607.0,0.02143908]
[1773606644432,0.0014,71621.0,71607.0,0.02143908]
[1773606646050,0.0698129,71620.0,71608.0,0.09119424]
[1773606646411,0.0698129,71620.0,71605.0,0.06982729]
[1773606646815,0.0698129,71620.0,71599.0,0.06983299]
[1773606647331,0.0698129,71620.0,71600.0,0.02136964]
[1773606647811,0.07002281,71631.0,71599.0,0.06983299]
[1773606647812,1e-08,71639.0,71612.0,0.025]
[1773606647980,5e-05,71672.0,71645.0,0.00248328]
[1773606648345,5e-05,71703.0,71650.0,0.018304]
[1773606648550,5e-05,71703.0,71653.0,0.0384]
[1773606648551,0.00015674,71703.0,71653.0,0.0384]
[1773606648778,1e-08,71706.0,71660.0,0.03234816]
[1773606648995,1e-08,71706.0,71647.0,0.024975]
[1773606648996,5.001e-05,71714.0,71669.0,1.452427]
[1773606649206,5.001e-05,71714.0,71647.0,0.18867227]
[1773606649207,0.06977143,71714.0,71675.0,2.339701]
[1773606649411,0.06977143,71714.0,71678.0,0.018304]
[1773606649639,0.06977143,71714.0,71682.0,0.018304]
[1773606649842,0.06972333,71712.0,71683.0,0.00136]
[1773606649991,0.06972333,71712.0,71684.0,0.06975057]
[1773606650202,5.001e-05,71714.0,71691.0,0.739363]
[1773606650408,0.01382691,71712.0,71682.0,0.06975057]
[1773606650617,0.01382691,71712.0,71663.0,0.06977045]
[1773606650618,0.01382691,71712.0,71679.0,0.00136]
[1773606650789,0.01382691,71712.0,71679.0,0.00146674]
[1773606651189,0.00136,71713.0,71691.0,0.018304]
[1773606651367,5.001e-05,71714.0,71693.0,0.018304]
[1773606651368,0.06977201,71714.0,71693.0,0.018304]
[1773606651537,0.06977201,71714.0,71679.0,0.00010674]
[1773606651538,0.06977201,71714.0,71690.0,0.00136]
[1773606651704,0.06957413,71714.0,71690.0,0.00136]
[1773606651908,0.06957413,71714.0,71679.0,0.00010674]
[1773606651909,0.00022001,71706.0,71680.0,0.06975446]
[1773606652235,0.00136,71705.0,71682.0,0.02258583]
[1773606652645,5.001e-05,71704.0,71682.0,0.02258583]
[1773606653170,5e-05,71716.0,71690.0,0.1756415]
[1773606653480,0.06971092,71725.0,71701.0,0.02256082]
[1773606653667,0.06971264,71723.0,71703.0,0.02273958]
[1773606653905,0.06971264,71723.0,71705.0,0.06973014]
[1773606654111,0.0697107,71725.0,71706.0,0.02273958]
[1773606654343,0.0697107,71725.0,71705.0,0.06973014]
[1773606654344,5e-05,71760.0,71724.0,0.02273958]
[1773606654507,5e-05,71760.0,71705.0,0.06973014]
[1773606654508,0.07105223,71744.0,71711.0,0.02256958]
[1773606654739,0.07105223,71744.0,71705.0,0.06973014]
[1773606654740,0.0001877,71742.0,71705.0,0.06973014]
[1773606654869,0.0001877,71739.0,71701.0,0.09230352]
[1773606655263,0.0001877,71739.0,71706.0,0.001]
[1773606655481,0.1756415,71730.0,71695.0,0.0697898]
[1773606655720,0.1756415,71730.0,71695.0,0.06978897]
[1773606655721,0.00136,71729.0,71695.0,0.06978897]
[1773606655929,0.06970778,71728.0,71695.0,5e-05]
[1773606656140,0.06970778,71728.0,71693.0,0.06973987]
[1773606656628,0.06970778,71728.0,71691.0,0.06974376]
[1773606658040,0.06970778,71728.0,71692.0,0.02571596]
[1773606658719,0.06970778,71728.0,71690.0,0.06974376]
[1773606659513,0.06970778,71728.0,71689.0,0.06974376]
[1773606659963,0.06970778,71728.0,71691.0,0.06974376]
[1773606660417,0.06970778,71728.0,71706.0,0.00034]
[1773606660921,0.06970778,71728.0,71692.0,0.02571596]
[1773606661134,0.0014,71727.0,71692.0,0.02571596]
[1773606661339,0.0014,71727.0,71695.0,5e-05]
[1773606661732,0.0014,71727.0,71691.0,0.05974376]
[1773606661931,0.06970972,71726.0,71691.0,0.05974376]
[1773606662303,0.0696987,71738.0,71711.0,0.01571596]
[1773606662430,0.0014,71735.0,71712.0,0.0014]
[1773606663818,0.0014,71735.0,71704.0,0.0127406]
[1773606664023,0.00069329,71735.0,71707.0,0.0014]
[1773606664182,0.07110195,71734.0,71709.0,0.0213406]
[1773606664518,0.07110195,71734.0,71708.0,0.06972722]
[1773606664519,0.0211517,71733.0,71708.0,0.05972722]
[1773606664714,0.0211517,71733.0,71706.0,0.06972722]
[1773606664918,0.0211517,71733.0,71706.0,0.05972722]
[1773606665302,0.0211517,71733.0,71706.0,0.08106782]
[1773606665471,0.0211517,71733.0,71706.0,0.05972722]
[1773606666120,0.0211517,71733.0,71706.0,0.08106782]
[1773606666321,0.06970389,71732.0,71706.0,0.07106782]
[1773606666697,0.0211517,71731.0,71706.0,0.04972722]
[1773606667529,0.0211517,71729.0,71699.0,0.0014]
[1773606668076,0.0211517,71729.0,71697.0,0.06973792]
[1773606668513,0.0211517,71727.0,71697.0,0.06973792]
[1773606668727,0.0211517,71725.0,71696.0,0.06973792]
[1773606669989,0.06970486,71731.0,71698.0,0.0213406]
[1773606670144,0.06970486,71731.0,71700.0,0.0213406]
[1773606670378,0.06970486,71731.0,71699.0,0.706041]
[1773606670379,0.0014,71730.0,71702.0,0.0213406]
[1773606670552,0.0211517,71729.0,71702.0,0.0213406]
[1773606670748,0.06970778,71728.0,71703.0,0.06973208]
[1773606671068,0.0211517,71727.0,71703.0,0.06973208]
[1773606672960,0.0211517,71725.0,71695.0,0.06978897]
[1773606673357,0.06970972,71726.0,71696.0,0.0213406]
[1773606673787,0.0014,71725.0,71700.0,0.0213406]
[1773606673987,0.06970584,71730.0,71701.0,0.02682436]
[1773606674189,0.0014,71724.0,71702.0,0.18337186]
[1773606674361,0.0014,71724.0,71703.0,0.1366069]
[1773606674772,0.0014,71724.0,71704.0,0.0213406]
[1773606675004,0.0014,71723.0,71705.0,0.06973014]
[1773606675159,0.0014,71723.0,71706.0,0.13685648]
[1773606675355,0.0014,71723.0,71707.0,0.13685648]
[1773606675556,0.0014,71723.0,71704.0,0.06973014]
[1773606675557,0.0211517,71722.0,71704.0,0.06973014]
[1773606675887,0.0014,71723.0,71704.0,0.06973014]
[1773606676421,0.0014,71723.0,71705.0,0.13720888]
[1773606676620,0.0014,71723.0,71706.0,0.13720888]
[1773606676914,0.0211517,71722.0,71707.0,0.13720888]
[1773606677218,0.09086628,71721.0,71708.0,0.31532214]
[1773606677359,0.09086628,71721.0,71709.0,0.24559498]
[1773606677669,0.06971458,71721.0,71710.0,0.13720888]
[1773606677862,0.06971458,71721.0,71711.0,0.13720888]
[1773606678073,0.06971458,71722.0,71712.0,0.24559498]
[1773606678270,0.06971458,71722.0,71713.0,0.11439576]
[1773606678271,0.06971458,71721.0,71713.0,0.11439576]
[1773606678624,0.06971458,71721.0,71708.0,0.06972716]
[1773606678625,0.06971458,71721.0,71711.0,0.1083861]
[1773606678778,0.06971458,71721.0,71702.0,0.06993298]
[1773606679123,0.06399025,71721.0,71702.0,0.0002]
[1773606679343,0.17500652,71720.0,71695.0,5e-05]
[1773606679484,0.00047116,71719.0,71695.0,0.06978932]
[1773606680367,0.00047116,71719.0,71695.0,5e-05]
[1773606680610,0.00047116,71719.0,71695.0,0.06978928]
[1773606681102,0.0697175,71718.0,71695.0,0.06978928]
[1773606681325,0.00152854,71717.0,71690.0,5e-05]
[1773606681492,0.0697175,71718.0,71691.0,0.02409819]
[1773606681698,0.0697175,71718.0,71690.0,0.06979466]
[1773606681903,0.0697175,71718.0,71690.0,0.06974466]
[1773606682110,0.0014,71717.0,71691.0,0.02409819]
[1773606682307,0.0014,71717.0,71690.0,0.06974466]
[1773606682513,0.0697175,71718.0,71690.0,0.06974466]
[1773606682814,0.0014,71717.0,71690.0,0.06974466]
[1773606683229,0.06971944,71716.0,71687.0,0.02409819]
[1773606684606,0.06971944,71716.0,71686.0,0.06974862]
[1773606685153,0.17500652,71710.0,71686.0,0.06974862]
[1773606685353,0.07112625,71709.0,71684.0,0.06974862]
[1773606685555,0.07112625,71709.0,71685.0,0.02401991]
[1773606686508,0.07112625,71709.0,71685.0,0.0002]
[1773606686948,0.07112625,71709.0,71686.0,0.02397911]
[1773606687389,0.07112625,71709.0,71687.0,0.06974765]
[1773606687591,0.07112625,71709.0,71688.0,0.02397911]
[1773606688364,0.07112625,71709.0,71687.0,0.06974765]
[1773606688570,0.07112625,71709.0,71685.0,0.0002]
[1773606688768,0.07112625,71709.0,71685.0,0.06994949]
[1773606688971,0.07112625,71709.0,71682.0,0.06975186]
[1773606689721,0.07112625,71709.0,71679.0,0.06975543]
[1773606690250,0.07112625,71709.0,71678.0,0.09365015]
[1773606691877,0.07112625,71709.0,71677.0,0.0002]
[1773606692094,0.07112625,71709.0,71678.0,0.02372519]
[1773606692948,0.07112625,71709.0,71677.0,0.06995684]
[1773606693111,0.07112625,71709.0,71678.0,0.02372519]
[1773606693703,0.07112625,71709.0,71679.0,0.06975543]
[1773606694730,0.07112625,71709.0,71678.0,0.06975577]
[1773606695050,0.07112625,71709.0,71677.0,0.0002]
[1773606695609,0.17500652,71700.0,71677.0,0.06995682]
[1773606695831,0.06973695,71698.0,71677.0,0.06995682]
[1773606696108,0.06973695,71698.0,71677.0,0.0002]
[1773606696315,0.06973695,71698.0,71677.0,0.06995723]
[1773606696548,0.06973695,71698.0,71672.0,5e-05]
[1773606696549,0.17500652,71690.0,71672.0,5e-05]
[1773606696761,0.0014,71689.0,71670.0,5e-05]
[1773606696933,0.0014,71688.0,71667.0,0.0001675]
[1773606697252,0.0014,71688.0,71667.0,1e-08]
[1773606697253,0.0014,71687.0,71667.0,1e-08]
[1773606697984,0.06974862,71686.0,71667.0,1e-08]
[1773606698354,0.17500652,71680.0,71660.0,5e-05]
[1773606698504,0.0014,71679.0,71660.0,5e-05]
[1773606698705,0.0014,71679.0,71655.0,5e-05]
[1773606699054,0.0014,71679.0,71656.0,0.02347562]
[1773606699754,0.06975738,71677.0,71656.0,0.02347562]
[1773606699956,0.06975738,71677.0,71656.0,0.09325304]
[1773606700167,0.06975738,71677.0,71656.0,0.06977742]
[1773606700361,0.06975738,71677.0,71657.0,0.02339291]
[1773606700930,0.06975738,71677.0,71650.0,5e-05]
[1773606701142,0.06975738,71677.0,71651.0,0.02339291]
[1773606701338,0.0014,71676.0,71651.0,0.02339291]
[1773606701957,0.06985332,71688.0,71653.0,0.02336418]
[1773606702162,0.0014,71687.0,71653.0,0.02336418]
[1773606702823,0.17500652,71680.0,71653.0,0.02336418]
[1773606703022,0.0014,71679.0,71653.0,0.02336418]
[1773606703957,0.06975641,71678.0,71653.0,0.09306217]
[1773606704160,0.06975641,71678.0,71654.0,0.02328219]
[1773606704504,0.06975641,71678.0,71658.0,0.02328219]
[1773606705263,0.06975641,71678.0,71657.0,0.0002]
[1773606706404,0.0231193,71677.0,71648.0,0.04909599]
[1773606706610,0.0231193,71677.0,71651.0,0.02181671]
[1773606708530,0.06975835,71676.0,71653.0,0.02311892]
[1773606708742,0.00132788,71675.0,71645.0,0.0001]
[1773606708936,0.06975835,71676.0,71646.0,0.02311892]
[1773606709117,0.00132788,71675.0,71646.0,0.02311892]
[1773606710528,0.0697603,71674.0,71646.0,0.02354622]
[1773606710904,0.17500652,71670.0,71646.0,0.02354622]
[1773606711104,0.0014,71669.0,71646.0,0.02354622]
[1773606712529,0.06975543,71680.0,71647.0,0.02374059]
[1773606712713,0.0014,71677.0,71647.0,0.02374059]
[1773606712910,0.06975543,71680.0,71647.0,0.02374059]
[1773606713179,0.0014,71676.0,71649.0,0.02234059]
[1773606713604,0.0014,71676.0,71649.0,0.02276789]
[1773606714629,0.06975933,71675.0,71651.0,0.02225623]
[1773606715601,0.06975933,71675.0,71651.0,0.02268353]
[1773606715803,0.06975933,71675.0,71651.0,0.02408353]
[1773606717256,0.06975933,71675.0,71653.0,0.02357505]
[1773606719435,0.06975933,71675.0,71652.0,0.02350947]
[1773606720532,0.03551696,71676.0,71652.0,0.02350947]
[1773606720708,0.07115933,71675.0,71652.0,0.02350947]
[1773606721455,0.0224711,71672.0,71651.0,0.0004273]
[1773606721639,0.0224711,71672.0,71644.0,0.09959333]
[1773606721640,0.0224711,71672.0,71644.0,0.02980387]
[1773606721796,0.06976127,71673.0,71645.0,0.0698382]
[1773606721797,0.0224711,71668.0,71645.0,0.0698382]
[1773606722138,0.0014,71667.0,71647.0,0.02176888]
[1773606722435,0.0238711,71667.0,71647.0,0.02176888]
[1773606722788,0.0238711,71667.0,71646.0,0.0002]
[1773606722982,0.0238711,71667.0,71646.0,0.06998707]
[1773606723293,0.06976809,71666.0,71646.0,0.06998707]
[1773606723500,0.0224711,71665.0,71648.0,0.0002]
[1773606724564,0.0224711,71665.0,71648.0,0.00030678]
[1773606725225,0.06977003,71664.0,71648.0,0.00030678]
[1773606725529,0.02302471,71663.0,71648.0,0.00030678]
[1773606727287,0.06977003,71664.0,71648.0,0.07009214]
[1773606727511,0.06977295,71661.0,71648.0,0.07009214]
[1773606728186,0.06977295,71661.0,71648.0,0.00030678]
[1773606728787,0.09279766,71661.0,71648.0,0.00030678]
[1773606729668,0.06977295,71661.0,71648.0,0.07009229]
[1773606730454,0.0014,71660.0,71648.0,0.07009229]
[1773606730846,0.0014,71660.0,71648.0,0.00030678]
[1773606731289,0.0014,71660.0,71648.0,0.07009236]
[1773606731693,0.0697749,71659.0,71648.0,0.07009236]
[1773606732486,0.0697749,71659.0,71648.0,0.00030678]
[1773606732686,0.0014,71658.0,71648.0,0.00030678]
[1773606733305,0.06977295,71661.0,71648.0,0.07009191]
[1773606733637,0.0014,71660.0,71649.0,0.00112262]
[1773606733769,0.0697749,71659.0,71650.0,0.06978367]
[1773606734119,0.0014,71658.0,71648.0,0.07009195]
[1773606734973,0.0014,71658.0,71649.0,0.00181916]
[1773606735178,0.0014,71658.0,71648.0,0.07009195]
[1773606735891,0.06977685,71657.0,71648.0,0.07009195]
[1773606738735,0.09224795,71657.0,71646.0,0.06998737]
[1773606738900,0.09235451,71657.0,71646.0,0.06998737]
[1773606740242,0.0224711,71656.0,71646.0,0.0002]
[1773606740621,0.0224711,71654.0,71646.0,0.0002]
[1773606740806,0.0697788,71655.0,71646.0,0.0002]
[1773606741144,0.0922499,71655.0,71646.0,0.0002]
[1773606741345,0.0224711,71654.0,71646.0,0.0002]
[1773606741906,0.0224711,71654.0,71642.0,0.06979111]
[1773606742249,0.0224711,71654.0,71641.0,0.06979205]
[1773606742452,0.0224711,71654.0,71640.0,0.07004295]
[1773606742453,0.0224711,71654.0,71640.0,0.00025]
[1773606742651,0.0237908,71652.0,71640.0,0.00025]
[1773606742852,0.0237908,71650.0,71640.0,0.0002]
[1773606744443,0.0247908,71650.0,71640.0,0.0002]
[1773606744801,0.03748332,71648.0,71640.0,0.0002]
[1773606745102,0.03740614,71648.0,71640.0,0.0002]
[1773606745582,0.06978464,71649.0,71640.0,0.06999301]
[1773606745782,0.06978464,71649.0,71640.0,0.0002]
[1773606745948,0.03744938,71648.0,71640.0,0.0002]
[1773606746155,0.06978464,71649.0,71640.0,0.0002]
[1773606746453,0.06978464,71649.0,71635.0,5e-05]
[1773606746649,0.06978464,71649.0,71618.0,0.06981483]
[1773606746650,0.02282908,71639.0,71618.0,0.06981483]
[1773606746850,0.03744938,71634.0,71618.0,0.06981483]
[1773606747078,0.03744938,71634.0,71625.0,0.0004632]
[1773606748191,0.03744938,71634.0,71625.0,0.0008192]
[1773606748699,0.03745792,71632.0,71625.0,0.0010192]
[1773606748861,0.0014,71631.0,71625.0,0.0010192]